bitfinex-derivatives/quotes_SOLF0:USTF0_20250424
["timestamp","ask_amount","ask_price","bid_price","bid_amount"]
[1745502608960,22.74083805,148.43,148.41,6.7357]
[1745502609159,16.00583805,148.43,148.37,5.0]
[1745502609557,22.74103805,148.43,148.37,5.0]
[1745502610760,6.7354,148.42,148.37,5.0]
[1745502611061,16.00583805,148.43,148.34,38.42503805]
[1745502611362,6.7356,148.42,148.34,38.42503805]
[1745502611959,6.7356,148.42,148.4,6.7361]
[1745502612162,16.00583805,148.43,148.34,38.42503805]
[1745502612463,36.0407,148.44,148.36,16.00583805]
[1745502612652,30.2,148.43,148.37,5.0]
[1745502613058,30.2,148.43,148.42,6.7354]
[1745502613460,30.2,148.43,148.37,5.0]
[1745502613661,46.20583805,148.43,148.37,5.0]
[1745502613861,46.20583805,148.43,148.34,22.4192]
[1745502614061,52.94113805,148.43,148.34,22.4192]
[1745502614661,52.94113805,148.43,148.4,6.7361]
[1745502614961,6.7355,148.42,148.4,6.7361]
[1745502615162,46.20583805,148.43,148.4,6.7361]
[1745502615462,46.20583805,148.43,148.41,6.7357]
[1745502615659,52.94103805,148.43,148.41,6.7357]
[1745502615959,46.20583805,148.43,148.42,6.7354]
[1745502616165,30.2,148.43,148.42,6.7354]
[1745502616770,30.2,148.43,148.41,6.7357]
[1745502617069,36.9351,148.43,148.41,6.7357]
[1745502617370,46.20583805,148.43,148.4,6.7361]
[1745502617769,6.7355,148.42,148.4,6.7361]
[1745502617969,30.2,148.43,148.42,6.7354]
[1745502618169,30.2,148.43,148.38,5.0]
[1745502618468,36.9352,148.43,148.41,6.7356]
[1745502619166,6.7355,148.42,148.4,6.7361]
[1745502619371,46.20583805,148.43,148.4,6.7361]
[1745502620065,52.94123805,148.43,148.4,6.7361]
[1745502620270,46.20583805,148.43,148.4,6.7361]
[1745502620572,16.00583805,148.41,148.34,22.4192]
[1745502620761,22.74193805,148.41,148.34,20.4153]
[1745502621069,22.74193805,148.41,148.39,6.7365]
[1745502621372,16.00583805,148.41,148.39,6.7365]
[1745502621572,10.24874705,148.4,148.39,6.7365]
[1745502622068,10.24874705,148.41,148.4,6.7362]
[1745502624070,10.24874705,148.41,148.39,6.7366]
[1745502624271,10.24874705,148.4,148.39,6.7366]
[1745502626171,10.24874705,148.4,148.34,17.18624705]
[1745502626374,39.48874705,148.39,148.34,5.0]
[1745502626670,39.48874705,148.39,148.34,15.24874705]
[1745502626868,10.24874705,148.37,148.34,5.0]
[1745502627068,29.24,148.39,148.36,10.24874705]
[1745502627266,29.24,148.39,148.35,15.24874705]
[1745502627569,29.24,148.39,148.38,6.7372]
[1745502628075,39.48874705,148.39,148.35,5.0]
[1745502628579,39.48874705,148.39,148.37,6.7373]
[1745502628765,39.48874705,148.39,148.35,5.0]
[1745502629576,29.24,148.39,148.35,15.24874705]
[1745502629772,29.24,148.39,148.38,6.7372]
[1745502629969,39.48874705,148.42,148.37,10.24874705]
[1745502630570,39.48874705,148.42,148.35,5.0]
[1745502630571,10.24874705,148.41,148.35,5.0]
[1745502630769,10.24874705,148.41,148.39,6.7365]
[1745502630975,10.24874705,148.41,148.36,10.24874705]
[1745502631276,39.48874705,148.42,148.4,6.7361]
[1745502631771,39.48874705,148.44,148.38,10.24874705]
[1745502631968,39.48874705,148.44,148.39,5.0]
[1745502632276,39.48874705,148.44,148.4,10.24874705]
[1745502632774,29.24,148.44,148.43,6.735]
[1745502633176,29.24,148.48,148.43,10.24874705]
[1745502633473,29.24,148.49,148.48,6.7327]
[1745502633677,29.24,148.49,148.46,10.24874705]
[1745502633872,29.24,148.49,148.48,6.7327]
[1745502634575,39.48874705,148.49,148.48,6.7327]
[1745502634776,39.48874705,148.49,148.47,6.7329]
[1745502635178,10.24874705,148.48,148.47,6.7329]
[1745502635477,10.24874705,148.48,148.46,6.7334]
[1745502635675,10.24874705,148.47,148.46,6.7334]
[1745502636679,10.24874705,148.47,148.42,5.0]
[1745502636979,10.24874705,148.46,148.42,5.0]
[1745502637180,10.24874705,148.46,148.44,6.7343]
[1745502637376,29.24,148.49,148.45,10.24874705]
[1745502637578,29.24,148.49,148.43,15.99114984]
[1745502637777,29.24,148.49,148.47,6.7331]
[1745502637972,29.24,148.49,148.43,15.99114984]
[1745502638374,29.24,148.49,148.47,6.733]
[1745502638579,29.24,148.49,148.43,15.99114984]
[1745502638780,29.24,148.49,148.43,18.03764984]
[1745502639178,6.7331,148.48,148.42,5.0]
[1745502639480,6.7331,148.48,148.45,6.7339]
[1745502639979,6.7331,148.48,148.46,6.7335]
[1745502640479,6.7331,148.48,148.42,5.0]
[1745502640672,35.9724,148.49,148.42,5.0]
[1745502640979,29.24,148.49,148.42,20.99114984]
[1745502641382,29.24,148.49,148.47,6.7328]
[1745502641580,29.24,148.49,148.44,15.99114984]
[1745502641980,29.24,148.49,148.48,6.7327]
[1745502645674,485.14,148.53,148.46,15.99114984]
[1745502645881,29.24,148.53,148.49,5.0]
[1745502646181,29.24,148.57,148.5,15.99114984]
[1745502646475,29.24,148.57,148.56,6.7291]
[1745502647078,29.24,148.57,148.52,20.99114984]
[1745502648277,29.24,148.57,148.55,6.7295]
[1745502649378,29.24,148.57,148.52,5.0]
[1745502649581,15.99114984,148.56,148.49,5.0]
[1745502649778,29.24,148.57,148.49,5.0]
[1745502649779,15.99114984,148.54,148.49,5.0]
[1745502650077,29.24,148.53,148.49,5.0]
[1745502650383,35.9705,148.53,148.5,6.7315]
[1745502651783,29.24,148.53,148.5,6.7315]
[1745502652085,29.24,148.53,148.46,381.86744984]
[1745502653588,29.24,148.53,148.46,365.8763]
[1745502653880,15.99114984,148.52,148.48,6.7325]
[1745502654286,15.99114984,148.52,148.46,5.0]
[1745502654488,29.24,148.53,148.46,5.0]
[1745502654980,29.24,148.53,148.5,6.7314]
[1745502655385,35.9706,148.53,148.46,5.0]
[1745502655787,15.99114984,148.52,148.46,5.0]
[1745502655985,22.72214984,148.52,148.46,5.0]
[1745502656189,15.99114984,148.52,148.43,34.22]
[1745502656489,6.7325,148.49,148.43,5.0]
[1745502656790,45.09114984,148.48,148.43,5.0]
[1745502656980,51.82414984,148.48,148.43,5.0]
[1745502657284,45.09114984,148.48,148.43,5.0]
[1745502657480,6.7337,148.46,148.41,357.0]
[1745502657790,22.72484984,148.46,148.43,6.7347]
[1745502660183,29.1,148.48,148.38,20.99114984]
[1745502660388,45.09114984,148.48,148.41,5.0]
[1745502660687,29.1,148.48,148.47,6.7332]
[1745502661787,29.1,148.48,148.46,6.7334]
[1745502662089,35.8329,148.48,148.42,2.0361]
[1745502662387,35.8329,148.48,148.45,6.7338]
[1745502662991,45.09114984,148.48,148.44,6.7343]
[1745502663283,15.99114984,148.46,148.38,20.99114984]
[1745502663984,6.7343,148.45,148.42,6.7352]
[1745502664194,45.09114984,148.44,148.38,5.0]
[1745502664489,35.8353,148.43,148.39,6.7364]
[1745502664682,35.8353,148.43,148.36,4.0622]
[1745502664884,29.1,148.43,148.36,4.0622]
[1745502665082,29.1,148.43,148.4,6.736]
[1745502665290,29.1,148.43,148.37,15.99114984]
[1745502665591,29.1,148.43,148.38,5.0]
[1745502666983,29.1,148.43,148.38,20.99114984]
[1745502667188,29.1,148.43,148.42,6.7354]
[1745502669094,29.1,148.43,148.38,5.0]
[1745502669293,29.1,148.43,148.36,20.05334984]
[1745502669587,35.835,148.43,148.36,2.0159]
[1745502669995,29.1,148.43,148.35,362.0]
[1745502670192,6.7359,148.41,148.35,362.0]
[1745502670787,22.72674984,148.42,148.38,6.7369]
[1745502670993,33.0522,148.43,148.35,362.0]
[1745502672198,33.0522,148.43,148.39,6.7365]
[1745502672392,15.99114984,148.42,148.35,5.0]
[1745502672692,6.736,148.41,148.38,6.7368]
[1745502672896,15.99114984,148.42,148.35,5.0]
[1745502673292,22.72684984,148.42,148.39,6.7368]
[1745502674094,6.736,148.41,148.39,6.7368]
[1745502674694,6.736,148.41,148.38,6.737]
[1745502675299,6.736,148.41,148.39,6.7366]
[1745502675597,33.0522,148.43,148.35,5.0]
[1745502675598,22.72744984,148.4,148.35,5.0]
[1745502675801,29.12,148.39,148.37,6.7375]
[1745502676000,29.12,148.39,148.32,20.99114984]
[1745502676504,29.12,148.39,148.37,6.7373]
[1745502678502,35.8568,148.39,148.37,6.7373]
[1745502681298,29.12,148.39,148.37,6.7373]
[1745502681506,29.12,148.39,148.32,20.99114984]
[1745502681703,29.12,148.39,148.33,1.976]
[1745502682002,29.12,148.39,148.37,6.7374]
[1745502683098,35.8568,148.39,148.37,6.7374]
[1745502683494,29.12,148.39,148.38,6.7372]
[1745502683699,29.12,148.39,148.33,1.976]
[1745502684106,29.12,148.39,148.37,6.7375]
[1745502684403,35.8568,148.39,148.37,6.7375]
[1745502686808,6.7372,148.38,148.36,6.7381]
[1745502687006,29.12,148.39,148.33,1.976]
[1745502687307,29.12,148.39,148.37,6.7374]
[1745502687308,35.8569,148.39,148.37,6.7374]
[1745502688010,6.7373,148.38,148.36,6.738]
[1745502688907,22.72844984,148.38,148.35,6.7384]
[1745502689111,15.99114984,148.38,148.32,5.0]
[1745502689312,15.99114984,148.38,148.34,6.7389]
[1745502689604,6.7392,148.34,148.28,5.0]
[1745502689802,28.26,148.33,148.28,5.0]
[1745502690606,15.99114984,148.32,148.26,357.0]
[1745502690813,15.99114984,148.32,148.3,6.7409]
[1745502691008,28.26,148.33,148.27,5.0]
[1745502691914,28.26,148.33,148.32,6.74]
[1745502694010,2.0206,148.37,148.36,6.7382]
[1745502694208,28.26,148.37,148.36,6.7382]
[1745502695411,28.26,148.37,148.35,6.7386]
[1745502695612,28.26,148.37,148.31,5.0]
[1745502695914,28.26,148.37,148.33,6.7392]
[1745502696113,15.99114984,148.36,148.31,5.0]
[1745502696320,15.99114984,148.34,148.26,377.99114984]
[1745502696520,28.26,148.33,148.26,377.99114984]
[1745502697618,28.26,148.33,148.31,6.7402]
[1745502697919,28.26,148.33,148.26,377.99114984]
[1745502698107,28.26,148.33,148.32,6.74]
[1745502699415,28.26,148.33,148.31,6.7403]
[1745502699616,28.26,148.33,148.29,5.0]
[1745502699922,28.26,148.33,148.32,6.74]
[1745502700420,28.26,148.33,148.31,6.7402]
[1745502700717,28.26,148.33,148.29,5.0]
[1745502700920,34.9996,148.33,148.3,6.7408]
[1745502701318,28.26,148.33,148.26,362.0]
[1745502701513,34.9999,148.33,148.3,6.7408]
[1745502702219,28.26,148.33,148.29,6.7411]
[1745502702425,15.99114984,148.32,148.26,5.0]
[1745502702623,15.99114984,148.3,148.26,5.0]
[1745502702817,28.26,148.29,148.28,6.7415]
[1745502710140,28.26,148.29,148.25,5.0]
[1745502710344,15.99114984,148.28,148.25,5.0]
[1745502710737,22.73334984,148.28,148.25,11.7429]
[1745502711041,22.73334984,148.28,148.25,5.0]
[1745502711341,15.99114984,148.28,148.26,6.7424]
[1745502711538,15.99114984,148.28,148.25,5.0]
[1745502711739,22.73324984,148.28,148.25,6.743]
[1745502712042,15.99114984,148.28,148.2,20.99114984]
[1745502712437,28.26,148.29,148.23,5.0]
[1745502712741,28.26,148.29,148.27,6.7418]
[1745502713144,28.26,148.29,148.23,5.0]
[1745502713441,28.26,148.29,148.27,6.742]
[1745502713844,28.26,148.29,148.28,6.7418]
[1745502715045,35.0016,148.29,148.23,5.0]
[1745502715342,28.26,148.29,148.23,5.0]
[1745502716847,6.7419,148.28,148.23,5.0]
[1745502717442,22.73304984,148.28,148.25,6.7428]
[1745502717638,6.7423,148.27,148.2,5.0]
[1745502718345,15.99114984,148.28,148.2,5.0]
[1745502718346,6.7427,148.26,148.2,5.0]
[1745502718650,27.36,148.25,148.23,6.7438]
[1745502718841,27.36,148.25,148.2,5.0]
[1745502719041,27.36,148.25,148.24,6.7436]
[1745502720844,27.36,148.28,148.27,6.7421]
[1745502721049,27.36,148.28,148.24,15.99114984]
[1745502721248,27.36,148.28,148.26,5.0]
[1745502721440,27.36,148.31,148.26,20.99114984]
[1745502721942,27.36,148.31,148.3,6.7409]
[1745502722238,27.36,148.34,148.28,15.99114984]
[1745502722548,27.36,148.34,148.33,6.7395]
[1745502723344,27.36,148.37,148.36,6.738]
[1745502724360,27.36,148.37,148.35,6.7385]
[1745502725350,27.36,148.37,148.36,6.7382]
[1745502726247,27.36,148.4,148.39,6.7367]
[1745502726452,27.36,148.4,148.34,20.99114984]
[1745502726655,27.36,148.4,148.34,5.0]
[1745502727350,27.36,148.4,148.34,20.99114984]
[1745502727553,27.36,148.4,148.39,6.7368]
[1745502727953,27.36,148.4,148.34,20.99114984]
[1745502728651,27.36,148.4,148.39,6.7368]
[1745502728852,27.36,148.4,148.36,15.99114984]
[1745502729051,27.36,148.4,148.37,5.0]
[1745502729251,27.36,148.4,148.39,6.7368]
[1745502729652,485.5,148.42,148.41,6.7359]
[1745502729957,485.5,148.42,148.37,5.0]
[1745502730154,15.99114984,148.39,148.35,6.7383]
[1745502730353,27.34,148.38,148.33,5.0]
[1745502731459,27.34,148.38,148.35,6.7382]
[1745502731757,27.34,148.38,148.33,5.0]
[1745502732154,27.34,148.38,148.36,6.738]
[1745502732357,27.34,148.38,148.33,5.0]
[1745502732858,34.0777,148.38,148.33,5.0]
[1745502733157,27.34,148.38,148.33,5.0]
[1745502733356,6.738,148.37,148.34,6.7388]
[1745502733557,43.33114984,148.38,148.3,9.0034]
[1745502734060,15.99114984,148.36,148.3,5.0]
[1745502734459,15.99114984,148.34,148.27,5.0]
[1745502734661,27.34,148.33,148.27,5.0]
[1745502735061,34.0798,148.33,148.3,6.7408]
[1745502735251,27.34,148.33,148.27,5.0]
[1745502735560,27.34,148.33,148.27,20.99114984]
[1745502735757,15.99114984,148.32,148.23,20.99114984]
[1745502735963,27.34,148.33,148.26,5.0]
[1745502736160,27.34,148.33,148.29,6.7409]
[1745502736357,27.34,148.33,148.26,5.0]
[1745502736561,27.34,148.33,148.29,5.0]
[1745502737264,34.0798,148.33,148.29,11.7411]
[1745502737664,27.34,148.33,148.29,11.7411]
[1745502738064,6.74,148.32,148.29,5.0]
[1745502738562,27.34,148.33,148.29,5.0]
[1745502738864,15.99114984,148.32,148.26,5.0]
[1745502739066,27.34,148.33,148.3,6.7406]
[1745502739660,15.99114984,148.32,148.27,6.7421]
[1745502739861,15.99114984,148.32,148.26,5.0]
[1745502740058,15.99114984,148.3,148.26,5.0]
[1745502740261,6.7422,148.27,148.22,5.0]
[1745502740466,15.99114984,148.28,148.22,5.0]
[1745502740868,6.743,148.26,148.23,6.7438]
[1745502741167,27.34,148.25,148.22,5.0]
[1745502741766,34.0833,148.25,148.22,11.7444]
[1745502741965,27.34,148.25,148.22,5.0]
[1745502742862,27.34,148.25,148.24,6.7436]
[1745502743266,27.34,148.29,148.23,15.99114984]
[1745502743467,27.34,148.29,148.28,6.7418]
[1745502743669,27.34,148.29,148.23,4.0607]
[1745502743967,34.0814,148.29,148.26,6.7424]
[1745502744462,34.0814,148.29,148.22,6.9631]
[1745502744463,27.34,148.29,148.22,6.9631]
[1745502744657,27.34,148.29,148.26,6.7424]
[1745502745061,34.0816,148.29,148.26,6.7424]
[1745502745366,27.34,148.29,148.23,15.99114984]
[1745502745569,27.34,148.29,148.22,6.9631]
[1745502745767,27.34,148.29,148.28,6.7418]
[1745502746171,27.34,148.29,148.27,6.742]
[1745502746373,27.34,148.29,148.23,5.0]
[1745502747069,34.0817,148.29,148.26,6.7427]
[1745502747279,27.34,148.29,148.23,5.0]
[1745502747667,6.7418,148.28,148.23,5.0]
[1745502748272,6.7418,148.28,148.24,6.7434]
[1745502748475,6.7418,148.28,148.23,5.0]
[1745502748773,27.34,148.29,148.23,6.7437]
[1745502749167,25.65618045,148.27,148.2,5.0]
[1745502749368,25.65618045,148.27,148.17,5.0]
[1745502749767,32.39858045,148.27,148.21,5.0]
[1745502749968,32.39858045,148.27,148.24,6.7436]
[1745502750269,25.65618045,148.27,148.21,5.0]
[1745502750469,6.743,148.26,148.21,5.0]
[1745502750669,26.94,148.25,148.21,5.0]
[1745502751167,26.94,148.25,148.24,6.7436]
[1745502753072,26.94,148.28,148.24,5.0]
[1745502753565,26.94,148.28,148.26,6.7423]
[1745502753770,26.94,148.28,148.24,5.0]
[1745502754073,33.682,148.28,148.25,6.7431]
[1745502754372,26.94,148.28,148.24,5.0]
[1745502755073,6.7426,148.27,148.24,11.7434]
[1745502755267,26.94,148.28,148.24,5.0]
[1745502755464,26.94,148.28,148.21,5.0]
[1745502755671,6.743,148.26,148.21,5.0]
[1745502755869,26.94,148.28,148.18,5.0]
[1745502756674,6.7439,148.24,148.21,6.7447]
[1745502756870,26.94,148.23,148.18,5.0]
[1745502757071,26.94,148.24,148.18,5.0]
[1745502757371,26.94,148.24,148.22,6.7443]
[1745502757572,26.94,148.24,148.18,5.0]
[1745502757870,26.94,148.24,148.23,6.7441]
[1745502760773,26.94,148.24,148.22,6.7443]
[1745502761074,26.94,148.24,148.21,5.0]
[1745502761473,26.94,148.24,148.23,6.7441]
[1745502768984,26.94,148.24,148.22,6.7441]
[1745502770283,33.6836,148.24,148.21,11.7448]
[1745502770981,6.7442,148.23,148.21,11.7448]
[1745502771183,26.94,148.24,148.21,11.7448]
[1745502771383,42.98673795,148.24,148.21,6.7448]
[1745502771585,42.98673795,148.24,148.18,5.0]
[1745502771877,16.04673795,148.22,148.18,5.0]
[1745502772082,6.7452,148.21,148.18,11.7461]
[1745502772278,26.94,148.2,148.18,11.7461]
[1745502772480,26.94,148.2,148.15,5.0]
[1745502772778,42.98673795,148.2,148.15,5.0]
[1745502773083,49.73243795,148.2,148.15,5.0]
[1745502773584,26.94,148.2,148.19,6.7459]
[1745502773984,26.94,148.23,148.18,5.0]
[1745502774187,26.94,148.23,148.22,6.7444]
[1745502774788,26.94,148.23,148.18,5.0]
[1745502775295,16.04673795,148.22,148.18,5.0]
[1745502775988,22.79143795,148.22,148.18,11.7461]
[1745502776192,16.04673795,148.22,148.18,11.7461]
[1745502776492,22.79123795,148.22,148.18,11.7461]
[1745502777293,6.745,148.21,148.18,5.0]
[1745502777687,16.04673795,148.22,148.18,5.0]
[1745502777888,6.7453,148.21,148.18,5.0]
[1745502778383,6.7453,148.21,148.15,5.0]
[1745502779192,22.79133795,148.22,148.15,5.0]
[1745502779692,6.7457,148.2,148.16,6.747]
[1745502780084,26.3,148.19,148.16,6.747]
[1745502780290,33.0461,148.19,148.15,5.0]
[1745502780995,33.0461,148.19,148.16,6.7469]
[1745502781287,26.3,148.19,148.15,5.0]
[1745502781494,16.04673795,148.18,148.12,5.0]
[1745502781695,6.747,148.17,148.14,6.7479]
[1745502782295,30.2424,148.19,148.12,5.0]
[1745502782492,16.04673795,148.18,148.12,5.0]
[1745502782797,6.7471,148.17,148.12,5.0]
[1745502783194,6.7471,148.17,148.14,6.7479]
[1745502783598,6.7471,148.17,148.12,5.0]
[1745502783897,26.3,148.2,148.15,5.0]
[1745502785296,26.3,148.2,148.18,6.7459]
[1745502785488,26.3,148.2,148.15,5.0]
[1745502785687,26.3,148.2,148.16,16.04673795]
[1745502785888,26.3,148.2,148.19,6.7459]
[1745502786704,26.3,148.26,148.18,21.04673795]
[1745502786896,33.0429,148.26,148.21,5.0]
[1745502787195,26.3,148.26,148.21,5.0]
[1745502787396,33.0429,148.26,148.21,5.0]
[1745502787598,33.0429,148.26,148.24,6.7433]
[1745502787599,26.3,148.26,148.24,6.7433]
[1745502787894,26.3,148.26,148.22,16.04673795]
[1745502788098,26.3,148.3,148.28,6.7415]
[1745502788293,26.3,148.3,148.26,16.04673795]
[1745502788500,26.3,148.3,148.27,5.0]
[1745502788804,26.3,148.33,148.27,5.0]
[1745502789094,33.0399,148.33,148.27,5.0]
[1745502789300,33.0399,148.33,148.29,6.7409]
[1745502790302,6.7401,148.32,148.28,6.7416]
[1745502790799,6.7401,148.32,148.27,5.0]
[1745502791105,6.7401,148.32,148.28,6.7416]
[1745502791603,26.3,148.33,148.28,6.7415]
[1745502792101,6.7411,148.3,148.27,11.7422]
[1745502792301,42.34673795,148.29,148.27,5.0]
[1745502792497,42.34673795,148.29,148.24,5.0]
[1745502792701,42.34673795,148.29,148.26,6.7424]
[1745502793507,26.3,148.29,148.24,5.0]
[1745502793695,42.34673795,148.33,148.28,5.0]
[1745502793899,26.3,148.36,148.29,16.04673795]
[1745502794101,26.3,148.36,148.34,6.7388]
[1745502794798,26.3,148.36,148.31,5.0]
[1745502795311,33.0384,148.36,148.32,6.7398]
[1745502796006,6.7387,148.35,148.32,6.7398]
[1745502796206,26.3,148.36,148.32,6.7398]
[1745502796507,33.0384,148.36,148.31,5.0]
[1745502796707,26.3,148.36,148.31,5.0]
[1745502797004,42.34673795,148.36,148.31,11.7402]
[1745502797206,42.34673795,148.36,148.31,5.0]
[1745502797402,16.04673795,148.34,148.28,5.0]
[1745502797599,16.04673795,148.34,148.3,6.7406]
[1745502797802,6.7394,148.34,148.28,5.0]
[1745502798202,6.7402,148.32,148.28,5.0]
[1745502798395,16.04673795,148.34,148.28,5.0]
[1745502798604,42.34673795,148.36,148.3,6.7407]
[1745502798798,42.34673795,148.36,148.28,5.0]
[1745502799104,6.7393,148.34,148.28,5.0]
[1745502799308,16.04673795,148.34,148.28,5.0]
[1745502799701,6.7403,148.32,148.28,5.0]
[1745502799901,26.28,148.31,148.28,5.0]
[1745502800308,26.28,148.31,148.29,6.741]
[1745502801207,26.28,148.31,148.28,11.7416]
[1745502801913,33.0205,148.31,148.28,5.0]
[1745502802201,26.28,148.31,148.28,5.0]
[1745502802504,6.7413,148.29,148.26,6.7424]
[1745502802909,16.04673795,148.3,148.26,6.7424]
[1745502803109,6.7416,148.29,148.26,6.7424]
[1745502804307,22.78773795,148.3,148.27,6.7422]
[1745502804504,26.28,148.31,148.25,5.0]
[1745502805810,26.28,148.31,148.29,6.7411]
[1745502806009,33.0205,148.31,148.29,6.7411]
[1745502806304,26.28,148.31,148.3,6.7409]
[1745502806609,26.28,148.31,148.28,5.0]
[1745502806800,26.28,148.31,148.29,6.7413]
[1745502807305,26.28,148.31,148.28,5.0]
[1745502807701,26.28,148.31,148.3,6.7409]
[1745502807908,26.02,148.34,148.28,5.0]
[1745502809016,32.7591,148.34,148.31,6.7402]
[1745502809912,26.02,148.34,148.32,6.7397]
[1745502810114,26.02,148.34,148.28,5.0]
[1745502810616,26.02,148.34,148.31,5.0]
[1745502811716,26.02,148.34,148.33,6.7395]
[1745502812312,26.02,148.34,148.31,5.0]
[1745502813118,26.02,148.34,148.33,6.7395]
[1745502813418,26.02,148.37,148.31,5.0]
[1745502814512,16.04673795,148.36,148.31,5.0]
[1745502814713,16.04673795,148.34,148.31,5.0]
[1745502814912,16.04673795,148.34,148.28,5.0]
[1745502815113,26.02,148.33,148.31,6.7404]
[1745502815315,26.02,148.33,148.28,5.0]
[1745502815716,32.7599,148.33,148.3,6.7408]
[1745502815915,26.02,148.33,148.28,5.0]
[1745502817920,26.02,148.33,148.31,6.7404]
[1745502818922,26.02,148.33,148.32,6.74]
[1745502820222,26.02,148.36,148.31,5.0]
[1745502820724,26.02,148.36,148.34,6.7389]
[1745502821022,26.02,148.36,148.34,5.0]
[1745502821222,485.78,148.38,148.34,5.0]
[1745502821820,485.78,148.38,148.36,6.7381]
[1745502822225,485.78,148.38,148.34,5.0]
[1745502822522,485.78,148.38,148.34,11.7388]
[1745502822723,485.78,148.38,148.34,5.0]
[1745502822919,485.78,148.38,148.37,6.7377]
[1745502823124,485.78,148.38,148.34,5.0]
[1745502823527,485.78,148.38,148.36,6.7379]
[1745502824225,485.78,148.38,148.35,6.7384]
[1745502824826,492.5174,148.38,148.35,6.7384]
[1745502825125,485.78,148.38,148.34,5.0]
[1745502826217,492.5175,148.38,148.35,6.7384]
[1745502826525,16.04673795,148.37,148.31,5.0]
[1745502826729,22.78473795,148.37,148.34,6.7388]
[1745502828127,26.02,148.35,148.31,5.0]
[1745502828816,26.02,148.35,148.33,6.7393]
[1745502829022,26.02,148.35,148.31,5.0]
[1745502829227,32.7587,148.35,148.31,5.0]
[1745502829427,32.7587,148.35,148.32,6.7399]
[1745502829629,26.02,148.35,148.32,6.7399]
[1745502829824,26.02,148.35,148.31,5.0]
[1745502830022,26.02,148.35,148.33,6.7392]
[1745502830328,26.02,148.35,148.31,5.0]
[1745502830926,1.9789,148.37,148.31,5.0]
[1745502831624,8.7168,148.37,148.31,5.0]
[1745502831821,8.7168,148.37,148.34,6.7386]
[1745502832020,1.9789,148.37,148.31,5.0]
[1745502832227,511.8,148.38,148.34,5.0]
[1745502832426,511.8,148.38,148.35,6.7385]
[1745502832722,518.5375,148.38,148.35,6.7385]
[1745502833030,6.7379,148.37,148.34,11.7389]
[1745502833332,511.8,148.38,148.34,5.0]
[1745502833731,518.5375,148.38,148.35,6.7383]
[1745502834232,6.7381,148.37,148.34,5.0]
[1745502834929,518.5375,148.38,148.35,6.7386]
[1745502835229,511.8,148.38,148.35,6.7386]
[1745502835628,6.7378,148.37,148.35,6.7386]
[1745502836133,511.8,148.38,148.36,6.7382]
[1745502837028,26.02,148.38,148.37,6.7377]
[1745502837332,26.02,148.38,148.34,5.0]
[1745502837531,26.02,148.38,148.36,6.7378]
[1745502837832,26.02,148.38,148.34,5.0]
[1745502838332,32.7573,148.38,148.34,5.0]
[1745502838734,32.7573,148.38,148.36,6.7379]